fUSD/lending_fUSD_20250823
["ID","MTS","AMOUNT","RATE_DAILY","PERIOD"]
[380961769,1755912797574,-400.0,0.00017808,2]
[380961770,1755912797583,-464.53,0.00017808,2]
[380961771,1755912797592,-400.0,0.00017808,2]
[380961772,1755912797601,-451.38,0.00017808,2]
[380961773,1755912797610,-605.41,0.00017808,2]
[380961774,1755912797619,-763.68,0.00017808,2]
[380961775,1755912797629,-400.0,0.00017808,2]
[380961776,1755912797639,-437.52,0.00017808,2]
[380961777,1755912797648,-496.31,0.00017808,2]
[380961778,1755912797658,-247.13433708,0.00017808,2]
[380961779,1755912797667,-400.0,0.00017808,2]
[380961780,1755912797677,-517.63,0.00017808,2]
[380961781,1755912797686,-1076.1,0.00017808,2]
[380961782,1755912797695,-400.0,0.00017808,2]
[380961783,1755912797705,-400.0,0.00017808,2]
[380961784,1755912797714,-400.0,0.00017808,2]
[380961785,1755912797723,-599.57,0.00017808,2]
[380961786,1755912797733,-400.0,0.00017808,2]
[380961787,1755912797742,-538.24,0.00017808,2]
[380961788,1755912797752,-578.64,0.00017808,2]
[380961789,1755912797761,-531.82,0.00017808,2]
[380961790,1755912797771,-481.87,0.00017808,2]
[380961791,1755912797783,-876.45,0.00017808,2]
[380961792,1755912797792,-596.46,0.00017808,2]
[380961793,1755912797801,-506.4,0.00017808,2]
[380961794,1755912797810,-750.69,0.00017808,2]
[380961795,1755912797820,-400.0,0.00017808,2]
[380961796,1755912797829,-483.91,0.00017808,2]
[380961797,1755912797838,-429.94,0.00017808,2]
[380961798,1755912797848,-2560.03,0.00017808,2]
[380961799,1755912797857,-583.44,0.00017808,2]
[380961800,1755912797866,-400.0,0.00017808,2]
[380961801,1755912797876,-400.0,0.00017808,2]
[380961802,1755912797885,-412.65,0.00017808,2]
[380961803,1755912797894,-511.98,0.00017808,2]
[380961804,1755912797904,-466.47,0.00017808,2]
[380961805,1755912797914,-714.55,0.00017808,2]
[380961806,1755912797923,-400.0,0.00017808,2]
[380961807,1755912797933,-400.0,0.00017808,2]
[380961808,1755912797943,-483.0,0.00017808,2]
[380961809,1755912797952,-638.96,0.00017808,2]
[380961810,1755912797961,-789.4,0.00017808,2]
[380961811,1755912797971,-626.45,0.00017808,2]
[380961812,1755912797981,-411.07,0.00017808,2]
[380961813,1755912797991,-459.86,0.00017808,2]
[380961814,1755912798000,-590.56,0.00017808,2]
[380961815,1755912798009,-7170.55,0.00017808,2]
[380961816,1755912798018,-798.6,0.00017808,2]
[380961817,1755912798029,-489.74,0.00017808,2]
[380961818,1755912798039,-568.83,0.00017808,2]
[380961819,1755912798048,-414.4,0.00017808,2]
[380961820,1755912798058,-755.36,0.00017808,2]
[380961821,1755912798067,-400.0,0.00017808,2]
[380961822,1755912798077,-556.35,0.00017808,2]
[380961823,1755912798087,-522.88,0.00017808,2]
[380961824,1755912798096,-2114.53,0.00017808,2]
[380961825,1755912798106,-152.17821274,0.00017808,2]
[380961826,1755912798115,-400.0,0.00017808,2]
[380961827,1755912798124,-2594.59,0.00017808,2]
[380961828,1755912798134,-446.5,0.00017808,2]
[380961829,1755912798144,-529.92,0.00017808,2]
[380961830,1755912798153,-705.67,0.00017808,2]
[380961831,1755912798163,-400.0,0.00017808,2]
[380961832,1755912798172,-896.87,0.00017808,2]
[380961833,1755912798183,-400.0,0.00017808,2]
[380961834,1755912798193,-1094.77,0.00017808,2]
[380961835,1755912798203,-741.74,0.00017808,2]
[380961836,1755912798213,-400.0,0.00017808,2]
[380961837,1755912798223,-869.76,0.00017808,2]
[380961838,1755912798232,-418.69,0.00017808,2]
[380961839,1755912798241,-437.77,0.00017808,2]
[380961840,1755912798250,-562.13,0.00017808,2]
[380961841,1755912798260,-541.27,0.00017808,2]
[380961842,1755912798269,-723.99,0.00017808,2]
[380961843,1755912798280,-1048.91,0.00017808,2]
[380961844,1755912798289,-344.3140332,0.00017808,2]
[380961845,1755912798299,-963.36,0.00017808,2]
[380961846,1755912798309,-685.08,0.00017808,2]
[380961847,1755912798319,-4903.23,0.00017808,2]
[380961848,1755912798329,-614.11,0.00017808,2]
[380961849,1755912798338,-400.0,0.00017808,2]
[380961850,1755912798348,-400.0,0.00017808,2]
[380961851,1755912798358,-530.85,0.00017808,2]
[380961852,1755912798368,-956.53,0.00017808,2]
[380961853,1755912798378,-508.77,0.00017808,2]
[380961854,1755912798387,-400.0,0.00017808,2]
[380961855,1755912798398,-400.0,0.00017808,2]
[380961856,1755912798413,-690.94,0.00017808,2]
[380961857,1755912798422,-781.78,0.00017808,2]
[380961858,1755912798432,-407.82,0.00017808,2]
[380961859,1755912798443,-516.0,0.00017808,2]
[380961860,1755912798452,-400.0,0.00017808,2]
[380961861,1755912798462,-573.49,0.00017808,2]
[380961862,1755912798471,-400.0,0.00017808,2]
[380961863,1755912798482,-548.91,0.00017808,2]
[380961864,1755912798492,-400.0,0.00017808,2]
[380961865,1755912798501,-2566.25,0.00017808,2]
[380961866,1755912798511,-468.96,0.00017808,2]
[380961867,1755912798521,-947.84,0.00017808,2]
[380961868,1755912798532,-1053.52,0.00017808,2]
[380961869,1755912798542,-400.0,0.00017808,2]
[380961870,1755912798551,-659.68,0.00017808,2]
[380961871,1755912798560,-691.7,0.00017808,2]
[380961872,1755912798570,-1155.0,0.00017808,2]
[380961873,1755912798579,-557.81,0.00017808,2]
[380961874,1755912798588,-1327.17,0.00017808,2]
[380961875,1755912798598,-719.87,0.00017808,2]
[380961876,1755912798607,-532.88,0.00017808,2]
[380961877,1755912798617,-621.05,0.00017808,2]
[380961878,1755912798627,-400.0,0.00017808,2]
[380961879,1755912798636,-482.24,0.00017808,2]
[380961880,1755912798645,-825.64,0.00017808,2]
[380961881,1755912798655,-786.36,0.00017808,2]
[380961882,1755912798664,-811.77,0.00017808,2]
[380961883,1755912798674,-508.4,0.00017808,2]
[380961884,1755912798683,-400.0,0.00017808,2]
[380961885,1755912798692,-448.05,0.00017808,2]
[380961886,1755912798701,-471.12,0.00017808,2]
[380961887,1755912798710,-522.09,0.00017808,2]
[380961888,1755912798720,-478.08,0.00017808,2]
[380961889,1755912798730,-400.0,0.00017808,2]
[380961890,1755912798739,-1160.25,0.00017808,2]
[380961891,1755912798749,-413.45,0.00017808,2]
[380961892,1755912798758,-400.0,0.00017808,2]
[380961893,1755912798768,-400.01,0.00017808,2]
[380961894,1755912798779,-1658.24,0.00017808,2]
[380961895,1755912798788,-876.0,0.00017808,2]
[380961896,1755912798798,-928.99,0.00017808,2]
[380961897,1755912798807,-1082.57,0.00017808,2]
[380961898,1755912798816,-599.68,0.00017808,2]
[380961899,1755912798826,-400.0,0.00017808,2]
[380961900,1755912798835,-576.13,0.00017808,2]
[380961901,1755912798845,-581.91,0.00017808,2]
[380961902,1755912798854,-535.34,0.00017808,2]
[380961903,1755912798864,-704.93,0.00017808,2]
[380961904,1755912798874,-629.77,0.00017808,2]
[380961905,1755912798883,-909.17,0.00017808,2]
[380961906,1755912798893,-757.81,0.00017808,2]
[380961907,1755912798902,-458.74,0.00017808,2]
[380961908,1755912798911,-400.0,0.00017808,2]
[380961909,1755912798921,-677.9,0.00017808,2]
[380961910,1755912798932,-808.82,0.00017808,2]
[380961911,1755912798942,-1628.12,0.00017808,2]
[380961912,1755912798952,-400.0,0.00017808,2]
[380961913,1755912798961,-556.37,0.00017808,2]
[380961914,1755912798970,-412.49,0.00017808,2]
[380961915,1755912798980,-562.56,0.00017808,2]
[380961916,1755912798990,-554.4,0.00017808,2]
[380961917,1755912799000,-699.23,0.00017808,2]
[380961918,1755912799009,-442.39,0.00017808,2]
[380961919,1755912799018,-627.55,0.00017808,2]
[380961920,1755912799030,-475.41,0.00017808,2]
[380961921,1755912799039,-400.0,0.00017808,2]
[380961922,1755912799049,-901.46,0.00017808,2]
[380961923,1755912799058,-246.95616458,0.00017808,2]
[380961924,1755912799068,-618.33,0.00017808,2]
[380961925,1755912799077,-400.0,0.00017808,2]
[380961926,1755912799087,-400.0,0.00017808,2]
[380961927,1755912799096,-493.66,0.00017808,2]
[380961928,1755912799105,-1043.76,0.00017808,2]
[380961929,1755912799115,-400.0,0.00017808,2]
[380961930,1755912799124,-400.0,0.00017808,2]
[380961931,1755912799134,-415.82,0.00017808,2]
[380961932,1755912799144,-491.94,0.00017808,2]
[380961933,1755912799154,-682.29,0.00017808,2]
[380961934,1755912799163,-400.0,0.00017808,2]
[380961935,1755912799173,-640.17,0.00017808,2]
[380961936,1755912799183,-427.73,0.00017808,2]
[380961937,1755912799192,-568.93,0.00017808,2]
[380961938,1755912799202,-501.87,0.00017808,2]
[380961939,1755912799212,-468.97,0.00017808,2]
[380961940,1755912799222,-537.21,0.00017808,2]
[380961941,1755912799232,-577.38,0.00017808,2]
[380961942,1755912799242,-620.18,0.00017808,2]
[380961943,1755912799252,-457.02,0.00017808,2]
[380961944,1755912799262,-400.0,0.00017808,2]
[380961945,1755912799273,-773.99,0.00017808,2]
[380961946,1755912799290,-400.0,0.00017808,2]
[380961947,1755912799302,-340.65,0.00017808,2]
[380961948,1755912799313,-400.0,0.00017808,2]
[380961949,1755912799325,-250.73062864,0.00017808,2]
[380961950,1755912799337,-1005.26,0.00017808,2]
[380961951,1755912799348,-400.0,0.00017808,2]
[380961952,1755912799360,-400.0,0.00017808,2]
[380961953,1755912799371,-407.11,0.00017808,2]
[380961954,1755912799381,-646.19,0.00017808,2]
[380961955,1755912799392,-610.39,0.00017808,2]
[380961956,1755912799411,-933.58,0.00017808,2]
[380961957,1755912799422,-431.04,0.00017808,2]
[380961958,1755912799434,-605.05,0.00017808,2]
[380961959,1755912799444,-400.0,0.00017808,2]
[380961960,1755912799455,-664.71,0.00017808,2]
[380961961,1755912799466,-938.83,0.00017808,2]
[380961962,1755912799476,-1070.54,0.00017808,2]
[380961963,1755912799488,-546.05,0.00017808,2]
[380961964,1755912799499,-490.42,0.00017808,2]
[380961965,1755912799510,-410.97,0.00017808,2]
[380961966,1755912799520,-570.73,0.00017808,2]
[380961967,1755912799539,-716.24,0.00017808,2]
[380961968,1755912799550,-665.32,0.00017808,2]
[380961969,1755912799560,-400.0,0.00017808,2]
[380961970,1755912799571,-697.95,0.00017808,2]
[380961971,1755912799580,-400.0,0.00017808,2]
[380961972,1755912799591,-731.6,0.00017808,2]
[380961973,1755912799601,-1401.51,0.00017808,2]
[380961974,1755912799611,-509.97,0.00017808,2]
[380961975,1755912799620,-400.0,0.00017808,2]
[380961976,1755912799630,-474.27,0.00017808,2]
[380961977,1755912799640,-1143.48,0.00017808,2]
[380961978,1755912799649,-633.21,0.00017808,2]
[380961979,1755912799660,-1150.35,0.00017808,2]
[380961980,1755912799671,-551.73,0.00017808,2]
[380961981,1755912799682,-803.81,0.00017808,2]
[380961982,1755912799694,-510.21,0.00017808,2]
[380961983,1755912799704,-507.56,0.00017808,2]
[380961984,1755912799713,-400.0,0.00017808,2]
[380961985,1755912799722,-1049.21,0.00017808,2]
[380961986,1755912799731,-709.31,0.00017808,2]
[380961987,1755912799741,-400.0,0.00017808,2]
[380961988,1755912799750,-870.96,0.00017808,2]
[380961989,1755912799762,-640.94,0.00017808,2]
[380961990,1755912799771,-599.05,0.00017808,2]
[380961991,1755912799785,-400.0,0.00017808,2]
[380961992,1755912799795,-518.56,0.00017808,2]
[380961993,1755912799805,-878.26,0.00017808,2]
[380961994,1755912799814,-784.45,0.00017808,2]
[380961995,1755912799824,-1743.04,0.00017808,2]
[380961996,1755912799833,-671.68,0.00017808,2]
[380961997,1755912799843,-939.87,0.00017808,2]
[380961998,1755912799852,-538.86,0.00017808,2]
[380961999,1755912799862,-983.76,0.00017808,2]
[380962000,1755912799872,-582.18,0.00017808,2]
[380962001,1755912799882,-400.0,0.00017808,2]
[380962002,1755912799896,-743.59,0.00017808,2]
[380962003,1755912799906,-839.71,0.00017808,2]
[380962004,1755912799916,-706.05,0.00017808,2]
[380962005,1755912799925,-400.0,0.00017808,2]
[380962006,1755912799935,-1021.93,0.00017808,2]
[380962007,1755912799944,-1278.62,0.00017808,2]
[380962008,1755912799953,-890.17,0.00017808,2]
[380962009,1755912799963,-400.0,0.00017808,2]
[380962010,1755912799972,-649.66,0.00017808,2]
[380962011,1755912799981,-527.2,0.00017808,2]
[380962012,1755912799991,-634.12,0.00017808,2]
[380962013,1755912800001,-784.4,0.00017808,2]
[380962014,1755912800011,-971.12,0.00017808,2]
[380962015,1755912800020,-726.51,0.00017808,2]
[380962016,1755912800032,-754.33,0.00017808,2]
[380962017,1755912800041,-1099.97,0.00017808,2]
[380962018,1755912800051,-1154.79,0.00017808,2]
[380962019,1755912800061,-1157.08,0.00017808,2]
[380962020,1755912800070,-535.95,0.00017808,2]
[380962021,1755912800079,-400.0,0.00017808,2]
[380962022,1755912800088,-691.37,0.00017808,2]
[380962023,1755912800097,-888.95,0.00017808,2]
[380962024,1755912800106,-1203.18,0.00017808,2]
[380962025,1755912800115,-656.19,0.00017808,2]
[380962026,1755912800125,-985.25,0.00017808,2]
[380962027,1755912800134,-807.2,0.00017808,2]
[380962028,1755912800144,-1439.09,0.00017808,2]
[380962029,1755912800154,-659.77,0.00017808,2]
[380962030,1755912800163,-400.0,0.00017808,2]
[380962031,1755912800173,-583.57,0.00017808,2]
[380962032,1755912800182,-731.16,0.00017808,2]
[380962033,1755912800191,-890.52,0.00017808,2]
[380962034,1755912800200,-766.72,0.00017808,2]
[380962035,1755912800210,-400.0,0.00017808,2]
[380962036,1755912800219,-855.77,0.00017808,2]
[380962037,1755912800228,-635.62,0.00017808,2]
[380962038,1755912800237,-986.02,0.00017808,2]
[380962039,1755912800246,-963.55,0.00017808,2]
[380962040,1755912800255,-967.68,0.00017808,2]
[380962041,1755912800264,-400.0,0.00017808,2]
[380962042,1755912800274,-482.07,0.00017808,2]
[380962043,1755912800287,-466.03,0.00017808,2]
[380962044,1755912800298,-859.0,0.00017808,2]
[380962045,1755912800307,-1494.7,0.00017808,2]
[380962046,1755912800317,-828.37,0.00017808,2]
[380962047,1755912800326,-507.72,0.00017808,2]
[380962048,1755912800336,-777.58,0.00017808,2]
[380962049,1755912800345,-400.0,0.00017808,2]
[380962050,1755912800354,-506.23,0.00017808,2]
[380962051,1755912800364,-781.12,0.00017808,2]
[380962052,1755912800374,-479.67,0.00017808,2]
[380962053,1755912800384,-937.77,0.00017808,2]
[380962054,1755912800393,-755.98,0.00017808,2]
[380962055,1755912800404,-585.32,0.00017808,2]
[380962056,1755912800418,-941.46,0.00017808,2]
[380962057,1755912800427,-979.86,0.00017808,2]
[380962058,1755912800437,-1039.23,0.00017808,2]
[380962059,1755912800446,-873.74,0.00017808,2]
[380962060,1755912800456,-545.13,0.00017808,2]
[380962061,1755912800466,-650.0,0.00017808,2]
[380962062,1755912800475,-498.14,0.00017808,2]
[380962063,1755912800484,-792.76,0.00017808,2]
[380962064,1755912800494,-400.0,0.00017808,2]
[380962065,1755912800504,-505.4,0.00017808,2]
[380962066,1755912800514,-764.74,0.00017808,2]
[380962067,1755912800523,-958.27,0.00017808,2]
[380962068,1755912800538,-822.02,0.00017808,2]
[380962069,1755912800548,-544.44118343,0.00017808,2]
[380962070,1755912800557,-400.0,0.00017808,2]
[380962071,1755912800567,-493.69,0.00017808,2]
[380962072,1755912800576,-400.0,0.00017808,2]
[380962073,1755912800586,-400.0,0.00017808,2]
[380962074,1755912800596,-550.01,0.00017808,2]
[380962075,1755912800605,-724.98,0.00017808,2]
[380962076,1755912800615,-400.0,0.00017808,2]
[380962077,1755912800624,-957.7,0.00017808,2]
[380962078,1755912800633,-712.18,0.00017808,2]
[380962079,1755912800642,-532.46,0.00017808,2]
[380962080,1755912800651,-484.95,0.00017808,2]
[380962081,1755912800661,-839.82,0.00017808,2]
[380962082,1755912800670,-400.0,0.00017808,2]
[380962083,1755912800679,-3061.19,0.00017808,2]
[380962084,1755912800688,-402.87,0.00017808,2]
[380962085,1755912800697,-668.01,0.00017808,2]
[380962086,1755912800706,-1167.85,0.00017808,2]
[380962087,1755912800715,-911.43,0.00017808,2]
[380962088,1755912800725,-400.0,0.00017808,2]
[380962089,1755912800734,-440.73,0.00017808,2]
[380962090,1755912800743,-931.59,0.00017808,2]
[380962091,1755912800753,-631.42,0.00017808,2]
[380962092,1755912800763,-400.0,0.00017808,2]
[380962093,1755912800772,-585.39,0.00017808,2]
[380962094,1755912800786,-400.0,0.00017808,2]
[380962095,1755912800796,-821.68,0.00017808,2]
[380962096,1755912800806,-613.21,0.00017808,2]
[380962097,1755912800816,-464.46,0.00017808,2]
[380962098,1755912800825,-408.02,0.00017808,2]
[380962099,1755912800834,-400.0,0.00017808,2]
[380962100,1755912800843,-1000.0,0.00017808,2]
[380962101,1755912800853,-649.47094969,0.00017853,2]
[380962102,1755912800862,-2000.0,0.00017853,2]
[380962103,1755912800872,-166.19984472,0.00017867,2]
[380962104,1755912800882,-1000.0,0.00017868,2]
[380962105,1755912800891,-2000.0,0.00017869,2]
[380962106,1755912800901,-1500.0,0.00017873,2]
[380962107,1755912800911,-300.0,0.00017899,2]
[380962108,1755912800920,-300.0,0.00017899,2]
[380962109,1755912800938,-300.0,0.00017899,2]
[380962110,1755912800949,-300.0,0.00017899,2]
[380962111,1755912800959,-300.0,0.00017899,2]
[380962112,1755912800969,-300.0,0.00017899,2]
[380962113,1755912800979,-200000.0,0.000179,2]
[380962114,1755912800989,-56196.0,0.000179,2]
[380962115,1755912800998,-200000.0,0.000179,2]
[380962116,1755912801008,-200000.0,0.000179,2]
[380962117,1755912801018,-200000.0,0.000179,2]
[380962118,1755912801028,-200000.0,0.000179,2]
[380962119,1755912801041,-70678.23,0.000179,2]
[380962120,1755912801050,-15916.79,0.000179,2]
[380962121,1755912801060,-14926.79,0.000179,2]
[380962122,1755912801070,-11085.78,0.000179,2]
[380962123,1755912801080,-34762.02,0.000179,2]
[380962124,1755912801090,-197067.19,0.000179,2]
[380962125,1755912801099,-11228.44,0.000179,2]
[380962126,1755912801109,-1000.0,0.00017927,2]
[380962127,1755912801119,-150.0,0.00017936,2]
[380962128,1755912801128,-150.0,0.00017963,2]
[380962129,1755912801138,-150.0,0.00017973,2]
[380962130,1755912801147,-2400.0,0.00017986,2]
[380962131,1755912801157,-1000.0,0.00017987,2]
[380962132,1755912801167,-500.0,0.00017995,2]
[380962133,1755912801176,-300.0,0.00017999,2]
[380962134,1755912801186,-300.0,0.00017999,2]
[380962135,1755912801196,-300.0,0.00017999,2]
[380962136,1755912801206,-435.89842496,0.00017999,2]
[380962137,1755912801215,-300.0,0.00017999,2]
[380962138,1755912801225,-17708.8,0.00018,2]
[380962139,1755912801235,-17708.8,0.00018,2]
[380962140,1755912801245,-70835.21,0.00018,2]
[380962141,1755912801255,-70835.21,0.00018,2]
[380962142,1755912801265,-9653.08,0.00018,2]
[380962143,1755912801275,-9653.08,0.00018,2]
[380962144,1755912801291,-26137.1,0.00018,2]
[380962145,1755912801301,-26137.1,0.00018,2]
[380962146,1755912801312,-400.0,0.00018,2]
[380962147,1755912801322,-400.0,0.00018,2]
[380962148,1755912801332,-400.0,0.00018,2]
[380962149,1755912801343,-400.0,0.00018,2]
[380962150,1755912801359,-9790.21,0.00018,2]
[380962151,1755912801371,-9790.21,0.00018,2]
[380962152,1755912801382,-163060.91527403,0.00018,2]
[380962153,1755912801393,-120402.0728335,0.00018,2]
[380962154,1755912801404,-1166.40892133,0.00018,2]
[380962155,1755912801418,-4538.3923194,0.00018,2]
[380962156,1755912801428,-1000.0,0.00018,4]
[380962157,1755912801437,-1000.0,0.00018,4]
[380962158,1755912801447,-129038.10065759,0.00018,2]
[380962159,1755912801457,-5000.0,0.00018,2]
[380962160,1755912801467,-60122.42663541,0.00018,2]
[380962161,1755912801477,-24445.83642949,0.00018,2]
[380962162,1755912801488,-200.0,0.00018,2]
[380962163,1755912801498,-2000.0,0.00018003,2]
[380962164,1755912801508,-2000.0,0.00018003,2]
[380962165,1755912801518,-470.2156571,0.00018003,2]
[380962166,1755912801531,-850.15145703,0.00018003,2]
[380962167,1755912801546,-150.0,0.00018016,2]
[380962168,1755912801558,-1000.0,0.00018046,2]
[380962169,1755912801568,-549.67,0.00018064,2]
[380962170,1755912801579,-150.0,0.00018068,2]
[380962171,1755912801591,-166.48,0.00018068,2]
[380962172,1755912801601,-300.0,0.00018081,2]
[380962173,1755912801614,-300.0,0.00018081,2]
[380962174,1755912801625,-300.0,0.00018081,2]
[380962175,1755912801635,-733.0,0.00018082,2]
[380962176,1755912801645,-474.45014642,0.00018082,2]
[380962177,1755912801655,-1367.0,0.00018082,2]
[380962178,1755912801667,-500.0,0.00018082,2]
[380962179,1755912801677,-500.0,0.00018082,2]
[380962180,1755912801688,-2066.0,0.00018082,2]
[380962181,1755912801698,-500.0,0.00018082,2]
[380962182,1755912801708,-1471.92,0.00018082,2]
[380962183,1755912801719,-404.24,0.00018082,2]
[380962184,1755912801728,-400.0,0.00018082,2]
[380962185,1755912801738,-400.0,0.00018082,2]
[380962186,1755912801749,-957.1,0.00018082,2]
[380962187,1755912801759,-500.5,0.00018082,2]
[380962188,1755912801774,-400.0,0.00018082,2]
[380962189,1755912801787,-630.13,0.00018082,2]
[380962190,1755912801797,-484.29,0.00018082,2]
[380962191,1755912801808,-691.2,0.00018082,2]
[380962192,1755912801819,-400.0,0.00018082,2]
[380962193,1755912801829,-564.0,0.00018082,2]
[380962194,1755912801840,-922.66,0.00018082,2]
[380962195,1755912801851,-1309.75,0.00018082,2]
[380962196,1755912801861,-400.0,0.00018082,2]
[380962197,1755912801870,-410.64,0.00018082,2]
[380962198,1755912801881,-400.0,0.00018082,2]
[380962199,1755912801891,-400.0,0.00018082,2]
[380962200,1755912801901,-814.35,0.00018082,2]
[380962201,1755912801911,-703.72,0.00018082,2]
[380962202,1755912801921,-400.0,0.00018082,2]
[380962203,1755912801931,-400.0,0.00018082,2]
[380962204,1755912801942,-400.0,0.00018082,2]
[380962205,1755912801952,-242.44,0.00018082,2]
[380962206,1755912801963,-416.84,0.00018082,2]
[380962207,1755912801973,-552.81,0.00018082,2]
[380962208,1755912801983,-565.22,0.00018082,2]
[380962209,1755912801993,-457.37,0.00018082,2]
[380962210,1755912802004,-400.0,0.00018082,2]
[380962211,1755912802014,-454.18,0.00018082,2]
[380962212,1755912802024,-408.41,0.00018082,2]
[380962213,1755912802036,-429.23,0.00018082,2]
[380962214,1755912802047,-400.0,0.00018082,2]
[380962215,1755912802057,-400.0,0.00018082,2]
[380962216,1755912802067,-311.85673298,0.00018082,2]
[380962217,1755912802078,-400.0,0.00018082,2]
[380962218,1755912802088,-582.37,0.00018082,2]
[380962219,1755912802098,-400.0,0.00018082,2]
[380962220,1755912802108,-400.0,0.00018082,2]
[380962221,1755912802118,-759.88,0.00018082,2]
[380962222,1755912802129,-400.0,0.00018082,2]
[380962223,1755912802139,-591.39,0.00018082,2]
[380962224,1755912802150,-413.97,0.00018082,2]
[380962225,1755912802160,-649.74,0.00018082,2]
[380962226,1755912802174,-446.38,0.00018082,2]
[380962227,1755912802185,-506.47,0.00018082,2]
[380962228,1755912802196,-715.02,0.00018082,2]
[380962229,1755912802207,-537.25,0.00018082,2]
[380962230,1755912802217,-400.0,0.00018082,2]
[380962231,1755912802228,-512.45,0.00018082,2]
[380962232,1755912802239,-527.41,0.00018082,2]
[380962233,1755912802249,-400.0,0.00018082,2]
[380962234,1755912802260,-521.1,0.00018082,2]
[380962235,1755912802271,-446.92,0.00018082,2]
[380962236,1755912802283,-449.44,0.00018082,2]
[380962237,1755912802294,-675.1,0.00018082,2]
[380962238,1755912802304,-400.0,0.00018082,2]
[380962239,1755912802315,-609.3,0.00018082,2]
[380962240,1755912802325,-654.03,0.00018082,2]
[380962241,1755912802336,-400.0,0.00018082,2]
[380962242,1755912802347,-400.0,0.00018082,2]
[380962243,1755912802358,-661.96,0.00018082,2]
[380962244,1755912802368,-568.98,0.00018082,2]
[380962245,1755912802379,-400.0,0.00018082,2]
[380962246,1755912802390,-400.0,0.00018082,2]
[380962247,1755912802403,-709.86,0.00018082,2]
[380962248,1755912802419,-812.84,0.00018082,2]
[380962249,1755912802430,-437.4,0.00018082,2]
[380962250,1755912802440,-586.38,0.00018082,2]
[380962251,1755912802451,-442.27,0.00018082,2]
[380962252,1755912802462,-562.61,0.00018082,2]
[380962253,1755912802472,-400.0,0.00018082,2]
[380962254,1755912802484,-400.0,0.00018082,2]
[380962255,1755912802506,-845.65,0.00018082,2]
[380962256,1755912802525,-441.24,0.00018082,2]
[380962257,1755912802538,-529.98,0.00018082,2]
[380962258,1755912802552,-400.0,0.00018082,2]
[380962259,1755912802563,-570.39,0.00018082,2]
[380962260,1755912802574,-400.0,0.00018082,2]
[380962261,1755912802586,-421.77,0.00018082,2]
[380962262,1755912802599,-400.0,0.00018082,2]
[380962263,1755912802610,-400.0,0.00018082,2]
[380962264,1755912802621,-400.0,0.00018082,2]
[380962265,1755912802632,-464.48,0.00018082,2]
[380962266,1755912802642,-415.36,0.00018082,2]
[380962267,1755912802654,-530.98,0.00018082,2]
[380962268,1755912802666,-512.43,0.00018082,2]